bitfinex-derivatives/quotes_ETHF0:USTF0_20250114
["timestamp","ask_amount","ask_price","bid_price","bid_amount"]
[1736876919767,3.47568144,3213.5,3213.3,3.2078]
[1736876919768,0.3113,3214.1,3214.0,0.3113]
[1736876919962,3.2078,3214.3,3213.6,0.77836]
[1736876920171,3.37108182,3214.1,3213.7,41.11133]
[1736876920366,0.3113,3214.1,3214.0,0.3113]
[1736876920667,3.2078,3214.3,3213.7,40.8]
[1736876920867,3.26698255,3214.1,3213.7,40.8]
[1736876921063,0.31132,3213.8,3213.7,41.11133]
[1736876921263,3.28683801,3214.2,3213.9,0.31131]
[1736876921565,3.56268317,3213.8,3213.7,41.11133]
[1736876921760,0.31132,3213.8,3213.7,40.8]
[1736876921965,3.87400317,3213.8,3213.7,41.11133]
[1736876922267,3.87400317,3213.8,3213.7,40.8]
[1736876922465,0.31136,3213.4,3213.3,3.51917]
[1736876922773,3.57591362,3213.4,3213.3,3.51917]
[1736876922961,3.26455362,3213.4,3213.3,44.31917]
[1736876923261,0.31135,3213.6,3213.3,44.0078]
[1736876923460,3.60134205,3213.5,3213.3,44.0078]
[1736876923662,0.31136,3213.5,3213.4,0.31136]
[1736876924068,3.91270205,3213.5,3213.4,0.31136]
[1736876924258,3.60134205,3213.5,3213.4,0.31136]
[1736876924460,0.4614,3213.6,3213.5,0.31135]
[1736876924461,0.31134,3213.6,3213.5,0.31135]
[1736876924661,0.31133,3213.8,3213.7,0.31133]
[1736876924973,3.77566614,3213.8,3213.7,0.31133]
[1736876925166,3.46433614,3213.8,3213.7,0.31133]
[1736876925369,1.313,3214.2,3214.1,0.3113]
[1736876925763,4.88660936,3214.2,3214.1,0.3113]
[1736876925965,3.57360936,3214.2,3214.1,3.5191]
[1736876926272,3.2078,3214.7,3214.1,3.2078]
[1736876926566,3.2078,3214.7,3214.6,0.31125]
[1736876926869,7.00350286,3214.7,3214.6,40.8]
[1736876927168,8.31650286,3214.7,3214.6,40.8]
[1736876927668,8.31650286,3214.7,3213.7,3.2078]
[1736876927669,0.77812,3214.6,3213.7,3.2078]
[1736876927862,0.31132,3213.8,3213.7,3.2078]
[1736876928069,0.31137,3213.4,3213.2,0.31137]
[1736876928466,0.12598424,3213.3,3213.2,0.31137]
[1736876928661,0.12598424,3213.3,3213.2,40.8]
[1736876928861,0.43735424,3213.3,3213.2,40.8]
[1736876929067,0.12598424,3213.3,3213.2,40.8]
[1736876929270,0.31136,3213.5,3213.3,0.31137]
[1736876929569,3.31450344,3213.4,3213.2,41.11137]
[1736876929871,3.62587344,3213.4,3213.2,41.11138]
[1736876930071,3.31450344,3213.4,3213.2,40.8]
[1736876930370,3.27217961,3213.5,3213.4,0.31136]
[1736876930570,3.27217961,3213.5,3213.2,40.8]
[1736876930571,0.4903,3213.7,3213.6,0.31134]
[1736876931069,3.27217961,3213.7,3213.6,0.31134]
[1736876931264,0.4571,3214.1,3213.5,3.2078]
[1736876931469,0.4571,3214.1,3214.0,0.3113]
[1736876931872,3.72423904,3214.1,3214.0,40.8]
[1736876932172,4.03553904,3214.1,3214.0,40.8]
[1736876933773,3.72423904,3214.1,3214.0,40.8]
[1736876934271,3.72423904,3214.1,3214.0,41.1113]
[1736876934871,3.72423904,3214.1,3214.0,40.8]
[1736876934872,4.03553904,3214.1,3214.0,40.8]
[1736876935172,0.31133,3213.7,3213.5,0.31135]
[1736876935372,0.31133,3213.7,3213.4,3.2078]
[1736876935373,0.31132,3213.9,3213.7,0.31133]
[1736876935668,3.86142656,3213.8,3213.7,0.31133]
[1736876935868,4.17275656,3213.8,3213.6,0.31133]
[1736876936075,4.17275656,3213.8,3213.7,41.11133]
[1736876936276,3.86142656,3213.8,3213.7,41.11133]
[1736876937073,3.41162656,3213.8,3213.7,41.11133]
[1736876938482,3.70115372,3213.9,3213.7,41.11133]
[1736876938780,0.31132,3213.8,3213.7,41.11133]
[1736876938982,0.31132,3213.8,3213.7,40.8]
[1736876939579,3.5588783,3213.8,3213.7,40.8]
[1736876939784,4.0165783,3213.8,3213.7,40.8]
[1736876940574,3.7052583,3213.8,3213.0,3.2078]
[1736876940775,3.7052583,3213.8,3212.5,3.2078]
[1736876940776,0.31143,3212.7,3212.5,3.2078]
[1736876940976,3.59827801,3212.6,3212.4,0.31145]
[1736876941275,0.31147,3212.3,3212.1,8.33244292]
[1736876941475,0.31146,3212.4,3212.2,41.11147]
[1736876941680,1.312,3212.4,3212.3,0.31147]
[1736876941879,1.62346,3212.4,3212.3,0.31147]
[1736876942184,1.62346,3212.4,3212.2,40.8]
[1736876942185,0.31147,3212.3,3212.2,41.11148]
[1736876942377,4.79086387,3212.4,3212.3,0.31147]
[1736876942679,1.312,3212.4,3212.2,40.8]
[1736876942878,0.31147,3212.3,3212.2,41.11147]
[1736876943181,0.31147,3212.3,3212.2,40.8]
[1736876943376,4.31292944,3212.3,3212.2,40.8]
[1736876943580,4.31292944,3212.3,3212.2,41.11148]
[1736876943879,4.31292944,3212.3,3212.2,40.8]
[1736876944275,10.80756745,3212.3,3212.2,40.8]
[1736876944482,0.31153,3211.8,3211.7,0.31152]
[1736876944982,3.58393584,3211.8,3211.7,41.11152]
[1736876945381,0.31152,3211.9,3211.8,0.31152]
[1736876945685,0.31151,3212.0,3211.9,0.3115]
[1736876945988,3.73845763,3212.0,3211.9,0.3115]
[1736876946980,0.31152,3211.8,3211.7,41.11152]
[1736876947279,0.31152,3211.8,3211.7,40.8]
[1736876947588,3.90220296,3211.8,3211.7,41.11153]
[1736876948186,3.59068296,3211.8,3211.7,41.11153]
[1736876948378,3.90220296,3211.8,3211.7,41.11153]
[1736876948575,0.31152,3211.8,3211.7,41.11153]
[1736876948878,3.79051047,3211.8,3211.7,40.8]
[1736876949077,3.47899047,3211.8,3211.7,41.11153]
[1736876949278,3.79051047,3211.8,3211.7,41.11153]
[1736876949479,3.62762368,3211.9,3211.8,0.31152]
[1736876949680,0.31151,3211.9,3211.8,0.31152]
[1736876949881,3.2078,3212.3,3211.7,40.8]
[1736876949882,1.62449,3212.2,3212.1,0.31149]
[1736876950187,4.62911368,3212.2,3212.1,0.31149]
[1736876950682,4.94059368,3212.2,3212.1,0.31149]
[1736876950876,4.94059368,3212.2,3211.7,40.8]
[1736876950877,3.31611368,3212.2,3211.7,40.8]
[1736876951183,3.31611368,3212.2,3212.1,0.31149]
[1736876951586,3.31611368,3212.2,3212.1,41.11149]
[1736876961988,3.31611368,3212.2,3212.1,44.31929]
[1736876962782,0.77873,3212.1,3211.0,3.2078]
[1736876962990,2.70560449,3211.8,3211.4,3.2078]
[1736876963293,2.19433,3212.1,3211.9,0.31151]
[1736876963294,3.40567125,3212.0,3211.9,0.31151]
[1736876963592,0.31145,3212.6,3212.5,0.31144]
[1736876963894,0.31146,3212.5,3212.4,0.31145]
[1736876964283,3.41309168,3212.5,3212.2,40.8]
[1736876964489,0.78397,3212.4,3212.3,0.31147]
[1736876964682,1.4156,3212.4,3212.2,40.8]
[1736876964887,3.01707449,3212.3,3212.2,40.8]
[1736876965087,0.3115,3212.0,3211.9,3.2078]
[1736876965294,2.70560449,3212.0,3211.4,3.98668]
[1736876965498,2.70560449,3212.0,3211.8,0.31151]
[1736876965499,1.62852,3211.9,3211.8,0.31151]
[1736876965798,1.62852,3211.9,3211.8,0.31152]
[1736876965994,5.06665954,3211.9,3211.8,0.31152]
[1736876966193,4.75513954,3211.9,3211.8,0.31152]
[1736876966397,5.06664954,3211.9,3211.8,0.31152]
[1736876966992,4.75513954,3211.9,3211.8,0.31152]
[1736876968312,4.75513954,3211.9,3211.8,3.51932]
[1736876969195,4.75513954,3211.9,3211.5,40.8]
[1736876969500,5.06665954,3211.9,3211.8,0.31152]
[1736876969993,4.75513954,3211.9,3211.8,0.31152]
[1736876970192,5.06664954,3211.9,3211.8,0.31152]
[1736876970498,0.31154,3211.7,3211.6,0.31153]
[1736876970693,0.31154,3211.6,3211.5,40.8]
[1736876971000,1.75364,3211.6,3211.5,40.8]
[1736876971302,0.31158,3211.2,3211.1,0.31158]
[1736876971492,0.31158,3211.2,3210.6,1.72208]
[1736876971493,1.317,3211.2,3210.6,3.2078]
[1736876971792,2.70560449,3210.8,3210.7,41.11162]
[1736876972195,3.43798861,3210.8,3210.7,41.11162]
[1736876977303,3.81215772,3210.9,3210.8,0.31161]
[1736876979500,0.31157,3211.3,3210.8,0.31161]
[1736876979706,0.79347,3211.4,3211.3,0.31157]
[1736876979911,3.68164117,3211.1,3211.0,3.51939]
[1736876980206,9.74575566,3211.3,3210.7,41.11162]
[1736876980405,0.31163,3210.6,3210.5,3.2078]
[1736876980596,0.31163,3210.6,3210.0,0.31169]
[1736876980597,0.77912,3210.5,3210.0,0.31169]
[1736876980797,0.31171,3209.9,3209.8,0.3117]
[1736876981003,0.31171,3209.9,3209.8,41.1117]
[1736876981208,0.3117,3209.9,3209.8,41.1117]
[1736876981409,0.3117,3209.9,3209.8,40.8]
[1736876981410,7.89085725,3209.9,3209.8,40.8]
[1736876981605,7.89085725,3209.9,3209.8,41.11171]
[1736876981909,7.89085725,3209.9,3209.8,40.8]
[1736876982814,7.89085725,3209.9,3209.8,41.11171]
[1736876983317,7.89085725,3209.9,3209.8,40.8]
[1736876983606,5.18525276,3209.9,3209.8,40.8]
[1736876983808,4.87355276,3209.9,3208.9,0.9225]
[1736876984008,3.28417957,3209.7,3209.1,0.77946]
[1736876984211,0.31173,3209.6,3209.5,0.31173]
[1736876984411,3.66812247,3209.6,3209.5,0.31173]
[1736876985410,0.31174,3209.5,3209.3,0.31175]
[1736876985604,0.31175,3209.4,3209.3,0.31175]
[1736876985806,3.61225842,3209.4,3209.3,0.31176]
[1736876986010,0.31174,3209.5,3209.2,40.8]
[1736876986307,0.31174,3209.5,3209.4,0.31175]
[1736876986713,0.31176,3209.3,3209.2,40.8]
[1736876986902,3.59593957,3209.3,3209.2,40.8]
[1736876987216,7.02963923,3209.3,3209.2,40.8]
[1736876987612,7.02963923,3209.3,3208.8,3.51961]
[1736876987613,0.3118,3208.9,3208.8,3.51961]
[1736876988016,4.59617957,3209.0,3208.8,3.2078]
[1736876988212,4.90796957,3209.0,3208.9,0.3118]
[1736876988612,4.77972043,3209.0,3208.9,0.3118]
[1736876988910,4.90791957,3209.6,3209.4,0.31174]
[1736876989212,3.46772043,3209.5,3209.3,0.31175]
[1736876989412,3.46772043,3209.5,3209.0,0.4834]
[1736876989616,0.31178,3209.1,3209.0,0.31178]
[1736876990112,3.61206701,3209.1,3209.0,0.31178]
[1736876990308,3.92384701,3209.1,3209.0,0.31178]
[1736876990515,3.7330668,3209.2,3209.1,0.31178]
[1736876990710,0.31177,3209.2,3209.1,0.31178]
[1736876991112,3.7330668,3209.2,3209.1,0.31178]
[1736876991515,3.7330668,3209.2,3209.0,41.11178]
[1736876991817,0.31178,3209.1,3209.0,40.8]
[1736876992209,0.3118,3208.9,3208.8,3.2078]
[1736876992409,4.90797957,3208.9,3208.8,3.2078]
[1736876992611,8.16261904,3208.9,3208.8,3.2078]
[1736876995318,7.85081904,3208.9,3208.6,0.31182]
[1736876995617,0.31182,3208.7,3208.6,0.31182]
[1736876995815,0.31184,3208.5,3208.4,0.31184]
[1736876996020,3.28417957,3208.6,3208.3,40.8]
[1736876996320,3.59600957,3208.6,3208.5,0.31184]
[1736876996517,3.59600957,3208.6,3208.3,40.8]
[1736876996518,0.31185,3208.4,3208.3,40.8]
[1736876996720,0.31186,3208.3,3208.2,0.31186]
[1736876996914,3.59603957,3208.3,3208.2,0.31186]
[1736876997116,3.46411861,3208.3,3208.2,41.11186]
[1736876997527,3.37005393,3208.4,3208.3,0.31186]
[1736876997909,3.2078,3208.9,3208.8,0.31181]
[1736876998114,3.2078,3208.9,3208.3,3.2078]
[1736876998115,4.5198,3208.9,3208.6,0.31182]
[1736876998329,3.59599957,3208.7,3208.6,0.31182]
[1736876998815,6.93161621,3208.7,3208.6,0.31182]
[1736876999011,0.31184,3208.6,3208.5,0.31183]
[1736876999510,3.64745664,3208.6,3208.5,0.31183]
[1736876999919,3.33561664,3208.6,3208.3,3.2078]
[1736877000123,3.59602957,3208.4,3208.3,0.31186]
[1736877000415,0.31183,3208.6,3208.5,0.31184]
[1736877000622,1.62383,3208.6,3208.5,0.31184]
[1736877000819,5.17352696,3208.6,3208.5,0.31184]
[1736877001021,3.86152696,3208.6,3208.5,0.31184]
[1736877001224,3.54969696,3208.6,3208.5,0.31184]
[1736877001814,3.98712,3209.7,3208.3,0.4663]
[1736877001815,1.312,3210.0,3208.7,1.55907]
[1736877002012,0.4746,3209.9,3209.4,3.2078]
[1736877002216,0.4746,3209.9,3209.5,0.31174]
[1736877002217,3.28233167,3209.6,3209.5,0.31174]
[1736877002422,7.67165673,3209.8,3209.5,40.8]
[1736877002619,3.07547716,3209.8,3209.7,0.31172]
[1736877002924,3.59583957,3210.4,3210.3,0.31166]
[1736877003428,6.52116569,3210.4,3210.3,0.31166]
[1736877003631,7.83316569,3210.4,3210.3,0.31166]
[1736877003823,0.31167,3210.3,3210.2,0.31167]
[1736877004223,3.79773766,3210.3,3210.2,0.31167]
[1736877004826,3.48606766,3210.3,3210.2,0.31167]
[1736877006230,3.2078,3210.5,3210.4,0.31165]
[1736877006530,6.80714584,3210.5,3210.4,0.31165]
[1736877007420,3.59934584,3210.5,3210.3,3.2078]
[1736877007620,3.59934584,3210.5,3209.4,3.2078]
[1736877007621,0.77917,3210.3,3209.4,3.2078]
[1736877007828,3.02090735,3209.5,3209.4,3.2078]
[1736877008027,4.33290735,3209.5,3209.4,3.2078]
[1736877008231,4.67979321,3209.5,3209.4,3.2078]
[1736877008726,4.67979321,3209.5,3208.5,40.8]
[1736877008727,4.36805321,3209.5,3208.8,3.2078]
[1736877008925,3.02095735,3209.0,3208.8,3.5196]
[1736877009126,3.02095735,3209.0,3208.8,0.3118]
[1736877009327,3.35756825,3208.9,3208.8,0.3118]
[1736877009727,3.89503297,3209.0,3208.6,0.31183]
[1736877009928,0.31179,3209.0,3208.5,40.8]
[1736877010125,3.28598947,3209.1,3209.0,0.31179]
[1736877010328,3.58324297,3208.9,3208.8,3.51961]
[1736877010530,4.59798947,3209.5,3208.8,3.2078]
[1736877010743,3.3270737,3209.2,3209.1,0.31178]
[1736877010939,0.31176,3209.3,3209.1,0.31178]
[1736877011329,3.3270737,3209.2,3209.1,0.31178]
[1736877011530,3.6388437,3209.2,3208.8,3.2078]
[1736877011733,0.31179,3209.0,3208.8,3.2078]
[1736877011940,0.31179,3209.0,3208.8,3.5196]
[1736877012235,3.29747629,3208.9,3208.8,3.51961]
[1736877012737,3.36214132,3209.0,3208.9,0.3118]
[1736877012930,0.9092,3209.1,3209.0,0.31179]
[1736877013337,3.36214132,3209.0,3208.9,0.31179]
[1736877014038,0.31176,3209.3,3209.2,0.31176]
[1736877014342,1.62575,3209.5,3209.3,0.31175]
[1736877014547,1.62575,3209.5,3208.8,3.2078]
[1736877014548,1.314,3209.5,3208.8,3.2078]
[1736877014844,0.31177,3209.2,3209.1,0.31178]
[1736877015046,4.70234378,3209.5,3209.1,0.31178]
[1736877015246,1.314,3209.5,3209.2,40.8]
[1736877015445,0.31177,3209.3,3209.2,40.8]
[1736877015943,0.31178,3209.2,3209.0,0.31179]
[1736877016147,0.31177,3209.2,3208.8,3.2078]
[1736877016334,0.31177,3209.2,3209.1,0.31177]
[1736877016538,1.314,3209.5,3209.1,40.8]
[1736877016734,0.31177,3209.2,3209.1,41.11177]
[1736877016939,1.314,3209.5,3209.2,0.31177]
[1736877016940,3.88150186,3209.4,3209.2,0.31177]
[1736877017148,3.88150186,3209.4,3209.3,0.31176]
[1736877017349,3.56974186,3209.4,3209.3,0.31176]
[1736877017738,3.55423474,3209.5,3209.2,0.31177]
[1736877017936,3.2078,3209.6,3209.1,40.8]
[1736877018146,1.55821,3210.6,3209.3,0.77941]
[1736877018147,1.314,3210.0,3209.3,0.77941]
[1736877018442,0.31169,3210.1,3210.0,0.31169]
[1736877018648,0.31169,3210.1,3209.8,3.51951]
[1736877018649,0.90711081,3209.9,3209.8,3.51951]
[1736877018849,0.31169,3210.0,3209.9,0.3117]
[1736877019043,3.24873007,3210.0,3209.8,3.2078]
[1736877019250,0.3117,3209.9,3209.8,3.51951]
[1736877019750,3.83188116,3209.9,3209.8,3.2078]
[1736877020252,3.52018116,3209.9,3209.8,3.51951]
[1736877020445,3.83188116,3209.9,3209.8,3.51951]
[1736877020642,0.31173,3209.7,3209.6,3.2078]
[1736877020942,3.57445074,3209.9,3209.7,0.31172]
[1736877021149,0.31171,3209.8,3209.7,0.31172]
[1736877021343,0.31171,3209.8,3209.2,3.98722]
[1736877021543,3.68691121,3209.8,3209.6,0.31172]
[1736877021944,0.31172,3209.7,3209.6,0.31172]
[1736877022352,0.31171,3209.8,3209.7,0.31172]
[1736877022551,3.28598947,3210.1,3209.2,3.98722]
[1736877022745,3.54593621,3209.7,3209.6,0.31172]
[1736877022945,3.85765621,3209.7,3209.6,0.31172]
[1736877023146,0.31172,3209.7,3209.6,0.31172]
[1736877023349,3.28598947,3210.1,3209.2,3.2078]
[1736877023554,3.28598947,3209.8,3209.2,3.2078]
[1736877023751,0.31176,3209.4,3209.3,0.31175]
[1736877023948,3.28598947,3209.8,3209.2,3.2078]
[1736877024146,0.31176,3209.3,3209.2,3.2078]
[1736877024356,1.314,3209.5,3209.1,40.8]
[1736877024552,1.314,3209.5,3209.4,0.31175]
[1736877024746,1.62574,3209.5,3209.4,0.31175]
[1736877024948,0.31174,3209.5,3209.4,0.31175]
[1736877025143,1.314,3209.8,3209.2,3.2078]
[1736877025352,1.314,3209.8,3209.7,3.51952]
[1736877025553,4.78810834,3209.8,3209.7,3.51952]
[1736877026751,3.28598947,3211.1,3209.9,0.77924]
[1736877027054,3.51937,3211.3,3211.2,0.31158]
[1736877027253,2.09282,3211.8,3211.0,3.2078]
[1736877027254,2.7374,3211.8,3211.0,3.2078]
[1736877027454,2.7374,3211.8,3211.1,40.8]
[1736877027660,0.31158,3211.2,3211.1,40.8]
[1736877028152,0.31158,3211.2,3210.2,3.2078]
[1736877028153,3.31537416,3211.2,3210.2,3.2078]
[1736877028358,0.31165,3210.5,3210.3,0.31166]
[1736877028555,3.28598947,3210.7,3210.2,3.2078]
[1736877028856,0.31166,3210.3,3210.2,3.51947]
[1736877029055,3.31537416,3210.6,3210.2,3.2078]
[1736877029248,3.31537416,3210.6,3210.2,44.0078]
[1736877029450,0.31165,3210.5,3210.3,0.31166]
[1736877029646,6.30166887,3210.6,3210.3,0.31166]
[1736877029849,3.90456999,3210.4,3210.3,0.31166]
[1736877030152,0.31166,3210.3,3210.2,44.0078]
[1736877030456,0.31168,3210.2,3209.8,3.2078]
[1736877030656,0.31169,3210.1,3210.0,0.31169]
[1736877030859,0.31169,3210.1,3210.0,41.11169]
[1736877031154,0.31168,3210.2,3210.1,0.31168]
[1736877031658,0.3117,3209.9,3209.8,3.2078]
[1736877032047,3.77557538,3209.9,3209.8,3.2078]
[1736877032858,3.46387538,3209.9,3209.8,41.11171]
[1736877033261,0.92,3210.3,3210.2,0.31167]
[1736877033755,3.92311819,3210.2,3210.1,3.2078]
[1736877033957,4.39921819,3210.2,3210.1,3.2078]
[1736877034349,0.31168,3210.1,3209.8,41.11171]
[1736877034658,0.3117,3209.9,3209.8,40.8]
[1736877035161,3.56138594,3209.9,3209.8,40.8]
[1736877035853,0.77931,3209.8,3209.2,3.2078]
[1736877036161,0.77931,3209.8,3209.2,3.51956]
[1736877036162,3.02050888,3209.4,3209.2,3.51956]
[1736877036359,0.4799,3209.3,3209.2,3.51956]
[1736877036560,3.93252799,3209.3,3209.2,3.51956]
[1736877037058,4.02274888,3209.7,3209.6,0.31173]
[1736877037259,1.314,3209.7,3209.6,3.51953]
[1736877037455,3.39890458,3209.7,3209.6,3.51953]
[1736877037962,3.49851738,3210.0,3209.6,3.2078]
[1736877038163,0.3117,3210.0,3209.9,0.3117]
[1736877038361,3.49851738,3210.0,3209.6,3.2078]
[1736877038866,0.31171,3209.9,3209.8,0.31171]
[1736877039061,3.81021738,3210.0,3209.9,0.3117]
[1736877039258,3.49851738,3210.0,3209.9,0.3117]
[1736877040663,3.49851738,3210.0,3209.9,41.1117]
[1736877043367,3.81020738,3210.0,3209.9,40.8]
[1736877043557,3.81020738,3210.0,3209.6,3.2078]
[1736877043558,0.31172,3209.7,3209.6,0.31173]
[1736877043763,1.63372,3209.7,3209.6,0.31173]
[1736877043959,4.60394364,3209.7,3209.6,41.11173]
[1736877045371,4.91566364,3209.7,3209.6,40.8]
[1736877046669,4.91566364,3209.7,3209.6,41.11173]
[1736877047170,4.91566364,3209.7,3209.6,40.8]
[1736877050473,0.31177,3209.2,3209.1,3.2078]
[1736877050770,3.02051888,3209.2,3209.1,3.51958]
[1736877050972,6.47140208,3209.2,3209.1,3.51958]
[1736877051369,6.47140208,3209.2,3209.1,3.2078]
[1736877051671,6.15963208,3209.2,3208.7,44.0078]
[1736877051876,0.31181,3208.8,3208.7,44.0078]
[1736877052076,2.70874888,3208.9,3208.7,44.0078]
[1736877052468,3.83548825,3208.8,3208.7,44.31961]
[1736877053771,3.52367825,3208.8,3208.7,44.31961]
[1736877054277,1.322,3209.0,3208.7,44.0078]
[1736877054475,3.41077424,3208.9,3208.8,0.31181]
[1736877054674,1.6338,3209.0,3208.9,0.3118]
[1736877054867,0.31181,3208.8,3208.7,44.0078]
[1736877055273,4.16504315,3208.8,3208.7,44.0078]
[1736877056179,4.16504315,3208.8,3208.7,3.2078]
[1736877057473,4.16504315,3208.8,3208.7,3.51962]
[1736877060980,4.16504315,3208.8,3208.7,3.2078]
[1736877061185,4.16504315,3208.8,3208.7,3.51962]
[1736877061186,3.85323315,3208.8,3208.7,3.51962]
[1736877061479,4.16504315,3208.8,3208.7,3.51962]
[1736877061980,3.85323315,3208.8,3208.7,3.51962]
[1736877062185,3.36153315,3208.8,3208.7,3.51962]
[1736877062485,0.76786,3209.4,3209.3,0.31176]
[1736877062876,4.23367059,3209.4,3209.3,0.31176]
[1736877063374,4.23367059,3209.4,3209.3,41.11176]
[1736877063778,3.92191059,3209.4,3209.3,41.11176]
[1736877064080,4.23366059,3209.4,3209.3,41.11176]
[1736877064781,4.23366059,3209.4,3209.3,40.8]
[1736877064983,0.77941,3209.3,3208.5,3.2078]
[1736877065176,3.02053888,3209.1,3209.0,0.31178]
[1736877065577,5.98318142,3209.1,3209.0,41.11178]
[1736877065777,6.29496142,3209.1,3209.0,41.11178]
[1736877066579,6.29496142,3209.1,3209.0,40.8]
[1736877066882,5.98318142,3209.1,3208.5,3.2078]
[1736877067082,0.31182,3208.7,3208.6,0.31183]
[1736877067283,0.31179,3209.0,3208.9,0.31179]
[1736877067482,0.31179,3209.0,3208.6,41.57958]
[1736877067483,3.43477477,3208.7,3208.6,40.8]
[1736877067679,3.43477477,3209.0,3208.6,41.17660306]
[1736877067884,0.3118,3208.9,3208.8,0.3118]
[1736877068287,3.87311857,3208.9,3208.8,0.3118]
[1736877070084,3.56131857,3208.9,3208.8,0.3118]
[1736877070284,1.63373,3209.8,3209.7,0.31171]
[1736877070493,3.2078,3209.9,3209.4,3.98717]
[1736877070688,1.4069,3210.1,3210.0,0.31169]
[1736877070689,0.4695,3210.1,3210.0,0.31169]
[1736877071191,3.97124793,3210.1,3210.0,0.31169]
[1736877071384,3.97124793,3210.1,3210.0,41.11169]
[1736877071585,4.28292793,3210.1,3210.0,41.11169]
[1736877072192,3.97124793,3210.1,3210.0,41.11169]
[1736877072382,4.28292793,3210.1,3210.0,41.11169]
[1736877075189,4.28292793,3210.1,3210.0,40.8]
[1736877075689,4.28292793,3210.1,3210.0,41.11169]
[1736877076484,3.50174793,3210.1,3210.0,41.11169]
[1736877076689,3.81342793,3210.1,3210.0,41.11169]
[1736877078491,3.50174793,3210.1,3210.0,41.11169]
[1736877078895,3.81342793,3210.1,3210.0,41.11169]
[1736877079097,3.50174793,3210.1,3210.0,41.11169]
[1736877079291,5.91654888,3211.0,3210.0,40.8]
[1736877079486,0.31161,3210.9,3210.4,3.2078]
[1736877079789,0.43849301,3210.9,3210.8,0.31161]
[1736877079994,0.31162,3210.8,3210.4,3.6846]
[1736877080292,0.31161,3210.9,3210.4,3.6846]
[1736877080592,1.25819,3211.1,3211.0,0.3116]
[1736877080795,4.5158,3211.4,3210.5,2.70874888]
[1736877080992,2.70874888,3211.6,3211.0,40.8]
[1736877080993,0.31155,3211.5,3211.0,40.8]
[1736877081196,0.31155,3211.5,3211.4,0.31156]
[1736877081497,0.31156,3211.4,3211.2,0.31157]
[1736877081992,2.2517,3211.6,3211.5,0.31155]
[1736877082192,3.02027888,3211.8,3211.6,0.31153]
[1736877082597,3.02027888,3211.8,3211.3,40.8]
[1736877082598,3.84095158,3211.7,3211.5,0.31154]
[1736877082798,0.31156,3211.4,3211.3,40.8]
[1736877082993,2.70874888,3211.4,3211.3,41.11157]
[1736877083189,5.98207801,3211.4,3211.3,40.8]
[1736877083494,7.21223801,3211.4,3211.3,40.8]
[1736877085190,0.31157,3211.3,3211.2,3.2078]
[1736877085496,0.80607,3211.3,3211.2,3.2078]
[1736877085793,4.34193546,3211.3,3211.2,3.2078]
[1736877087996,0.31161,3210.9,3210.8,3.51941]
[1736877088199,3.02035888,3210.9,3210.8,3.2078]
[1736877088385,5.96677196,3210.9,3210.8,3.51941]
[1736877088586,3.25802308,3210.9,3210.8,3.51941]
[1736877089090,3.02035888,3210.9,3210.8,3.51941]
[1736877089491,6.377102,3210.9,3210.8,3.51941]
[1736877090293,11.065492,3210.9,3209.9,3.2078]
[1736877090491,3.02039888,3210.5,3209.9,3.2078]
[1736877090686,1.308,3210.4,3210.3,0.31165]
[1736877090886,4.65140866,3210.4,3210.3,44.31945]
[1736877091096,0.4845,3210.8,3210.3,44.0078]
[1736877091301,1.308,3210.9,3210.8,0.31161]
[1736877092195,1.308,3210.9,3210.8,41.11161]
[1736877092395,7.63872706,3210.9,3210.8,41.11161]
[1736877092597,7.32711706,3210.9,3210.8,41.11161]
[1736877093695,6.01911706,3210.9,3210.8,41.11161]
[1736877093898,0.979,3211.3,3211.2,0.31158]
[1736877094201,1.308,3211.7,3211.2,3.51938]
[1736877094403,1.308,3211.7,3211.6,0.31154]
[1736877094699,5.0419816,3211.7,3211.6,0.31154]
[1736877094895,3.7339816,3211.7,3211.6,0.31154]
[1736877095106,3.7339816,3211.7,3211.6,41.11154]
[1736877095995,3.4224516,3211.7,3211.6,41.11154]
[1736877096802,3.7339816,3211.7,3211.6,41.11154]
[1736877097598,3.4224516,3211.7,3211.6,41.11154]
[1736877098097,3.4224516,3211.7,3211.6,44.31934]
[1736877098398,3.2078,3212.7,3211.9,0.77878]
[1736877098600,3.51924,3212.7,3212.5,0.31144]
[1736877098902,3.51924,3212.7,3212.2,3.2078]
[1736877099096,3.51924,3212.7,3212.6,0.31144]
[1736877099289,3.51924,3212.7,3212.5,0.31144]
[1736877099494,3.51924,3212.7,3212.6,0.31144]
[1736877099899,3.2078,3212.7,3212.6,0.31144]
[1736877100103,3.51923,3212.7,3212.6,41.11144]
[1736877100603,3.2078,3212.7,3212.6,41.11144]
[1736877100804,0.31143,3212.7,3212.6,41.11143]
[1736877101003,0.31143,3212.7,3212.6,40.8]
[1736877102602,5.05089426,3212.8,3212.7,0.31143]
[1736877103106,1.7887,3212.8,3212.7,0.31143]
[1736877103409,3.33455772,3212.8,3212.7,0.31143]
[1736877103706,2.70874888,3213.0,3212.6,44.0078]
[1736877103909,3.33455772,3212.9,3212.8,0.31142]
[1736877104398,2.70874888,3213.0,3212.8,0.31142]
[1736877104594,0.31143,3212.7,3212.6,3.2078]
[1736877104801,3.02017888,3212.7,3212.6,3.2078]
[1736877105001,6.29382524,3212.7,3212.6,3.2078]
[1736877105803,5.98239524,3212.7,3212.0,40.8]
[1736877106002,3.02023888,3212.1,3212.0,40.8]
[1736877106402,6.54605948,3212.1,3212.0,41.1115]
[1736877106803,6.54605948,3212.1,3212.0,40.8]
[1736877107406,9.75385948,3212.1,3212.0,40.8]
[1736877107613,9.75385948,3212.1,3211.4,0.31155]
[1736877107614,0.31153,3211.7,3211.6,0.31153]
[1736877107813,10.22111948,3212.1,3211.5,0.31154]